fUSD/lending_fUSD_20240629
["ID","MTS","AMOUNT","RATE_DAILY","PERIOD"]
[330615933,1719624702487,-500.0,0.00022246,3]
[330615934,1719624702497,-956.58,0.00022246,3]
[330615935,1719624702508,-2492.98,0.00022246,3]
[330615936,1719624702520,-500.0,0.00022246,3]
[330615937,1719624702530,-1280.97,0.00022246,3]
[330615938,1719624702541,-1607.49,0.00022246,3]
[330615939,1719624702551,-385.93526971,0.00022246,3]
[330615940,1719624702560,-500.0,0.00022246,3]
[330615941,1719624702569,-1825.36,0.00022246,3]
[330615942,1719624702579,-568.9,0.00022246,3]
[330615943,1719624702589,-611.62,0.00022246,3]
[330615944,1719624702599,-971.35,0.00022246,3]
[330615945,1719624702608,-519.67,0.00022246,3]
[330615946,1719624702617,-840.41,0.00022246,3]
[330615947,1719624702627,-2314.34,0.00022246,3]
[330615948,1719624702636,-1062.64,0.00022246,3]
[330615949,1719624702645,-1278.36,0.00022246,3]
[330615950,1719624702655,-500.0,0.00022246,3]
[330615951,1719624702664,-726.74,0.00022246,3]
[330615952,1719624702674,-719.85,0.00022246,3]
[330615953,1719624702683,-805.35,0.00022246,3]
[330615954,1719624702693,-1378.29,0.00022246,3]
[330615955,1719624702702,-500.0,0.00022246,3]
[330615956,1719624702711,-500.0,0.00022246,3]
[330615957,1719624702721,-1224.35,0.00022246,3]
[330615958,1719624702731,-1229.71,0.00022246,3]
[330615959,1719624702740,-869.06,0.00022246,3]
[330615960,1719624702751,-992.34,0.00022246,3]
[330615961,1719624702761,-1654.9,0.00022246,3]
[330615962,1719624702771,-1704.78,0.00022246,3]
[330615963,1719624702780,-2076.09,0.00022246,3]
[330615964,1719624702790,-651.81,0.00022246,3]
[330615965,1719624702799,-500.0,0.00022246,3]
[330615966,1719624702809,-1556.6,0.00022246,3]
[330615967,1719624702819,-560.1,0.00022246,3]
[330615968,1719624702828,-2203.32,0.00022246,3]
[330615969,1719624702837,-3370.19,0.00022246,3]
[330615970,1719624702847,-500.0,0.00022246,3]
[330615971,1719624702856,-467.4104526,0.00022246,3]
[330615972,1719624702866,-798.14,0.00022246,3]
[330615973,1719624702876,-500.0,0.00022246,3]
[330615974,1719624702886,-500.0,0.00022246,3]
[330615975,1719624702895,-500.0,0.00022246,3]
[330615976,1719624702907,-500.0,0.00022246,3]
[330615977,1719624702916,-1154.66,0.00022246,3]
[330615978,1719624702926,-2649.29,0.00022246,3]
[330615979,1719624702936,-500.0,0.00022246,3]
[330615980,1719624702945,-1088.38,0.00022246,3]
[330615981,1719624702955,-500.0,0.00022246,3]
[330615982,1719624702964,-3995.74,0.00022246,3]
[330615983,1719624702973,-602.85,0.00022246,3]
[330615984,1719624702985,-278.43,0.00022246,3]
[330615985,1719624702994,-715.7,0.00022246,3]
[330615986,1719624703003,-500.0,0.00022246,3]
[330615987,1719624703013,-500.0,0.00022246,3]
[330615988,1719624703023,-222.19512622,0.00022246,3]
[330615989,1719624703032,-500.0,0.00022246,3]
[330615990,1719624703042,-1200.89,0.00022246,3]
[330615991,1719624703051,-1090.08,0.00022246,3]
[330615992,1719624703061,-596.59989439,0.00022246,3]
[330615993,1719624703070,-500.0,0.00022246,3]
[330615994,1719624703080,-762.16,0.00022246,3]
[330615995,1719624703090,-500.0,0.00022246,3]
[330615996,1719624703100,-500.0,0.00022246,3]
[330615997,1719624703109,-500.0,0.00022246,3]
[330615998,1719624703118,-829.56,0.00022246,3]
[330615999,1719624703128,-993.51,0.00022246,3]
[330616000,1719624703138,-1364.87,0.00022246,3]
[330616001,1719624703148,-657.96,0.00022246,3]
[330616002,1719624703158,-2538.87,0.00022246,3]
[330616003,1719624703168,-500.0,0.00022246,3]
[330616004,1719624703177,-893.56,0.00022246,3]
[330616005,1719624703187,-564.74,0.00022246,3]
[330616006,1719624703196,-736.25,0.00022246,3]
[330616007,1719624703207,-12682.01,0.00022246,3]
[330616008,1719624703217,-500.0,0.00022246,3]
[330616009,1719624703226,-880.57,0.00022246,3]
[330616010,1719624703235,-290.99098265,0.00022246,3]
[330616011,1719624703245,-500.0,0.00022246,3]
[330616012,1719624703255,-500.0,0.00022246,3]
[330616013,1719624703265,-522.87,0.00022246,3]
[330616014,1719624703275,-1053.53,0.00022246,3]
[330616015,1719624703285,-759.87,0.00022246,3]
[330616016,1719624703294,-601.93,0.00022246,3]
[330616017,1719624703303,-2414.51,0.00022246,3]
[330616018,1719624703313,-500.0,0.00022246,3]
[330616019,1719624703323,-1061.98,0.00022246,3]
[330616020,1719624703333,-848.12,0.00022246,3]
[330616021,1719624703342,-500.0,0.00022246,3]
[330616022,1719624703351,-1264.22,0.00022246,3]
[330616023,1719624703364,-766.48,0.00022246,3]
[330616024,1719624703374,-507.94,0.00022246,3]
[330616025,1719624703383,-1086.97,0.00022246,3]
[330616026,1719624703393,-1177.5,0.00022246,3]
[330616027,1719624703402,-500.0,0.00022246,3]
[330616028,1719624703412,-760.6,0.00022246,3]
[330616029,1719624703422,-275.97895345,0.00022246,3]
[330616030,1719624703431,-500.0,0.00022246,3]
[330616031,1719624703441,-1973.51,0.00022246,3]
[330616032,1719624703451,-2321.48,0.00022246,3]
[330616033,1719624703461,-2233.52,0.00022246,3]
[330616034,1719624703471,-500.0,0.00022246,3]
[330616035,1719624703480,-2749.79,0.00022246,3]
[330616036,1719624703489,-963.69,0.00022246,3]
[330616037,1719624703498,-1074.85,0.00022246,3]
[330616038,1719624703507,-1377.5,0.00022246,3]
[330616039,1719624703517,-500.0,0.00022246,3]
[330616040,1719624703527,-314.15893613,0.00022246,3]
[330616041,1719624703537,-775.21,0.00022246,3]
[330616042,1719624703546,-500.0,0.00022246,3]
[330616043,1719624703556,-1065.55,0.00022246,3]
[330616044,1719624703565,-500.0,0.00022246,3]
[330616045,1719624703575,-500.0,0.00022246,3]
[330616046,1719624703584,-500.0,0.00022246,3]
[330616047,1719624703593,-500.0,0.00022246,3]
[330616048,1719624703602,-604.05941118,0.00022246,3]
[330616049,1719624703612,-3085.74,0.00022246,3]
[330616050,1719624703621,-500.0,0.00022246,3]
[330616051,1719624703631,-1623.53,0.00022246,3]
[330616052,1719624703640,-500.0,0.00022246,3]
[330616053,1719624703649,-745.35,0.00022246,3]
[330616054,1719624703658,-943.44,0.00022246,3]
[330616055,1719624703668,-625.74,0.00022246,3]
[330616056,1719624703678,-500.0,0.00022246,3]
[330616057,1719624703687,-501.18,0.00022246,3]
[330616058,1719624703697,-500.0,0.00022246,3]
[330616059,1719624703708,-1679.91,0.00022246,3]
[330616060,1719624703717,-500.0,0.00022246,3]
[330616061,1719624703726,-1132.91,0.00022246,3]
[330616062,1719624703736,-500.0,0.00022246,3]
[330616063,1719624703745,-500.0,0.00022246,3]
[330616064,1719624703756,-1318.36,0.00022246,3]
[330616065,1719624703765,-500.0,0.00022246,3]
[330616066,1719624703775,-500.0,0.00022246,3]
[330616067,1719624703784,-500.0,0.00022246,3]
[330616068,1719624703793,-736.44,0.00022246,3]
[330616069,1719624703802,-840.02,0.00022246,3]
[330616070,1719624703811,-1081.59,0.00022246,3]
[330616071,1719624703820,-1849.11,0.00022246,3]
[330616072,1719624703829,-500.0,0.00022246,3]
[330616073,1719624703838,-500.0,0.00022246,3]
[330616074,1719624703847,-1000.0,0.00022246,3]
[330616075,1719624703856,-500.0,0.00022246,3]
[330616076,1719624703871,-500.0,0.00022246,3]
[330616077,1719624703881,-500.0,0.00022246,3]
[330616078,1719624703891,-1597.58,0.00022246,3]
[330616079,1719624703900,-1986.25,0.00022246,3]
[330616080,1719624703910,-1585.98,0.00022246,3]
[330616081,1719624703919,-608.57,0.00022246,3]
[330616082,1719624703929,-1073.01,0.00022246,3]
[330616083,1719624703939,-1000.61,0.00022246,3]
[330616084,1719624703948,-1643.07,0.00022246,3]
[330616085,1719624703959,-500.0,0.00022246,3]
[330616086,1719624703968,-500.0,0.00022246,3]
[330616087,1719624703978,-1527.95,0.00022246,3]
[330616088,1719624703988,-1188.51,0.00022246,3]
[330616089,1719624703998,-1015.94,0.00022246,3]
[330616090,1719624704008,-2163.62,0.00022246,3]
[330616091,1719624704018,-500.0,0.00022246,3]
[330616092,1719624704028,-1604.57,0.00022246,3]
[330616093,1719624704038,-588.74,0.00022246,3]
[330616094,1719624704047,-500.0,0.00022246,2]
[330616095,1719624704057,-689.63,0.00022246,3]
[330616096,1719624704067,-1311.4,0.00022246,3]
[330616097,1719624704078,-973.69,0.00022246,3]
[330616098,1719624704087,-2190.51,0.00022246,3]
[330616099,1719624704097,-500.0,0.00022246,3]
[330616100,1719624704107,-739.67,0.00022246,3]
[330616101,1719624704116,-1221.85,0.00022246,3]
[330616102,1719624704126,-845.18,0.00022246,3]
[330616103,1719624704135,-500.0,0.00022246,3]
[330616104,1719624704144,-1064.69,0.00022246,3]
[330616105,1719624704154,-500.0,0.00022246,3]
[330616106,1719624704164,-500.0,0.00022246,3]
[330616107,1719624704173,-1372.43,0.00022246,3]
[330616108,1719624704182,-1381.66,0.00022246,3]
[330616109,1719624704192,-569.83,0.00022246,3]
[330616110,1719624704202,-2728.8,0.00022246,3]
[330616111,1719624704211,-163.72171686,0.00022246,3]
[330616112,1719624704220,-526.85,0.00022246,3]
[330616113,1719624704230,-500.0,0.00022246,3]
[330616114,1719624704239,-1303.73,0.00022246,3]
[330616115,1719624704249,-500.0,0.00022246,3]
[330616116,1719624704259,-500.0,0.00022246,3]
[330616117,1719624704270,-832.33,0.00022246,3]
[330616118,1719624704280,-2395.26,0.00022246,3]
[330616119,1719624704290,-1056.71,0.00022246,3]
[330616120,1719624704299,-1254.99,0.00022246,3]
[330616121,1719624704310,-417.77949378,0.00022246,3]
[330616122,1719624704320,-2107.44,0.00022246,3]
[330616123,1719624704330,-986.91,0.00022246,3]
[330616124,1719624704339,-704.01,0.00022246,3]
[330616125,1719624704349,-2584.99,0.00022246,3]
[330616126,1719624704363,-1411.17,0.00022246,3]
[330616127,1719624704373,-1009.52,0.00022246,3]
[330616128,1719624704383,-500.0,0.00022246,3]
[330616129,1719624704393,-500.0,0.00022246,3]
[330616130,1719624704403,-500.0,0.00022246,3]
[330616131,1719624704412,-161.79410494,0.00022246,3]
[330616132,1719624704422,-1273.01,0.00022246,3]
[330616133,1719624704433,-1001.05,0.00022246,3]
[330616134,1719624704443,-500.0,0.00022246,3]
[330616135,1719624704453,-1327.81,0.00022246,3]
[330616136,1719624704462,-500.0,0.00022246,3]
[330616137,1719624704473,-500.0,0.00022246,3]
[330616138,1719624704483,-1132.22,0.00022246,3]
[330616139,1719624704492,-500.0,0.00022246,3]
[330616140,1719624704502,-500.0,0.00022246,3]
[330616141,1719624704511,-937.96,0.00022246,3]
[330616142,1719624704521,-587.85,0.00022246,3]
[330616143,1719624704531,-2259.45,0.00022246,3]
[330616144,1719624704541,-436.5050669,0.00022246,3]
[330616145,1719624704550,-500.0,0.00022246,3]
[330616146,1719624704560,-2428.22,0.00022246,3]
[330616147,1719624704569,-500.0,0.00022246,3]
[330616148,1719624704579,-500.0,0.00022246,3]
[330616149,1719624704589,-977.27,0.00022246,3]
[330616150,1719624704599,-500.0,0.00022246,3]
[330616151,1719624704608,-981.24,0.00022246,3]
[330616152,1719624704618,-500.0,0.00022246,3]
[330616153,1719624704627,-974.78,0.00022246,3]
[330616154,1719624704637,-1714.27,0.00022246,3]
[330616155,1719624704646,-521.07261197,0.00022246,3]
[330616156,1719624704656,-576.48,0.00022246,3]
[330616157,1719624704665,-967.39,0.00022246,3]
[330616158,1719624704675,-1137.65,0.00022246,3]
[330616159,1719624704684,-500.0,0.00022246,3]
[330616160,1719624704693,-568.89,0.00022246,3]
[330616161,1719624704703,-500.0,0.00022246,3]
[330616162,1719624704713,-984.13,0.00022246,3]
[330616163,1719624704722,-500.0,0.00022246,3]
[330616164,1719624704732,-500.0,0.00022246,3]
[330616165,1719624704742,-500.0,0.00022246,3]
[330616166,1719624704752,-727.21,0.00022246,3]
[330616167,1719624704761,-1214.06,0.00022246,3]
[330616168,1719624704771,-500.0,0.00022246,3]
[330616169,1719624704781,-1193.36,0.00022246,3]
[330616170,1719624704790,-500.0,0.00022246,3]
[330616171,1719624704800,-2780.98,0.00022246,3]
[330616172,1719624704810,-759.71,0.00022246,3]
[330616173,1719624704819,-1297.69,0.00022246,3]
[330616174,1719624704829,-500.0,0.00022246,3]
[330616175,1719624704839,-500.0,0.00022246,3]
[330616176,1719624704848,-500.0,0.00022246,3]
[330616177,1719624704858,-500.0,0.00022246,3]
[330616178,1719624704868,-500.0,0.00022246,3]
[330616179,1719624704877,-500.0,0.00022246,3]
[330616180,1719624704886,-505.96,0.00022246,3]
[330616181,1719624704895,-500.0,0.00022246,3]
[330616182,1719624704904,-1124.22,0.00022246,3]
[330616183,1719624704914,-500.0,0.00022246,3]
[330616184,1719624704923,-570.66,0.00022246,3]
[330616185,1719624704933,-633.29,0.00022246,3]
[330616186,1719624704942,-845.43,0.00022246,3]
[330616187,1719624704953,-1095.2,0.00022246,3]
[330616188,1719624704962,-500.0,0.00022246,3]
[330616189,1719624704971,-500.0,0.00022246,3]
[330616190,1719624704981,-500.0,0.00022246,3]
[330616191,1719624704991,-748.95,0.00022246,3]
[330616192,1719624705001,-500.0,0.00022246,3]
[330616193,1719624705010,-1324.14,0.00022246,3]
[330616194,1719624705019,-1453.57,0.00022246,3]
[330616195,1719624705028,-1852.58,0.00022246,3]
[330616196,1719624705038,-194.76204525,0.00022246,3]
[330616197,1719624705047,-500.0,0.00022246,3]
[330616198,1719624705057,-500.0,0.00022246,3]
[330616199,1719624705066,-1763.92,0.00022246,3]
[330616200,1719624705077,-4338.01,0.00022246,3]
[330616201,1719624705087,-500.0,0.00022246,3]
[330616202,1719624705096,-5418.69,0.00022246,3]
[330616203,1719624705105,-1136.46,0.00022246,3]
[330616204,1719624705115,-500.0,0.00022246,3]
[330616205,1719624705124,-1888.95,0.00022246,3]
[330616206,1719624705133,-569.8,0.00022246,3]
[330616207,1719624705142,-500.0,0.00022246,3]
[330616208,1719624705151,-547.65,0.00022246,3]
[330616209,1719624705161,-500.0,0.00022246,3]
[330616210,1719624705170,-1021.33,0.00022246,3]
[330616211,1719624705179,-500.0,0.00022246,3]
[330616212,1719624705189,-1168.6,0.00022246,3]
[330616213,1719624705198,-321.54800448,0.00022246,3]
[330616214,1719624705208,-1957.94,0.00022246,3]
[330616215,1719624705217,-500.0,0.00022246,3]
[330616216,1719624705226,-500.0,0.00022246,3]
[330616217,1719624705236,-506.21,0.00022246,3]
[330616218,1719624705245,-1780.68,0.00022246,3]
[330616219,1719624705257,-500.0,0.00022246,3]
[330616220,1719624705267,-1322.96,0.00022246,3]
[330616221,1719624705277,-547.15,0.00022246,3]
[330616222,1719624705286,-1583.67,0.00022246,3]
[330616223,1719624705296,-2240.67,0.00022246,3]
[330616224,1719624705306,-966.47,0.00022246,3]
[330616225,1719624705316,-500.0,0.00022246,3]
[330616226,1719624705325,-1135.47,0.00022246,3]
[330616227,1719624705335,-712.47,0.00022246,3]
[330616228,1719624705345,-511.76517988,0.00022246,3]
[330616229,1719624705357,-500.0,0.00022246,3]
[330616230,1719624705368,-629.98,0.00022246,3]
[330616231,1719624705378,-500.0,0.00022246,3]
[330616232,1719624705388,-4477.0,0.00022246,3]
[330616233,1719624705398,-500.0,0.00022246,3]
[330616234,1719624705407,-1164.4,0.00022246,3]
[330616235,1719624705418,-500.0,0.00022246,3]
[330616236,1719624705429,-4088.66,0.00022246,3]
[330616237,1719624705439,-754.53,0.00022246,3]
[330616238,1719624705451,-1160.53,0.00022246,3]
[330616239,1719624705462,-500.0,0.00022246,3]
[330616240,1719624705472,-500.0,0.00022246,3]
[330616241,1719624705483,-968.77,0.00022246,3]
[330616242,1719624705494,-600.27,0.00022246,3]
[330616243,1719624705504,-3288.62,0.00022246,3]
[330616244,1719624705515,-1212.59,0.00022246,3]
[330616245,1719624705525,-894.99,0.00022246,3]
[330616246,1719624705535,-1000.94,0.00022246,3]
[330616247,1719624705545,-880.93,0.00022246,3]
[330616248,1719624705555,-1879.36,0.00022246,3]
[330616249,1719624705564,-1375.65,0.00022246,3]
[330616250,1719624705575,-500.0,0.00022246,3]
[330616251,1719624705585,-1503.63,0.00022246,3]
[330616252,1719624705594,-500.0,0.00022246,3]
[330616253,1719624705604,-500.0,0.00022246,3]
[330616254,1719624705614,-2293.24,0.00022246,3]
[330616255,1719624705623,-919.92,0.00022246,3]
[330616256,1719624705634,-1260.45,0.00022246,3]
[330616257,1719624705643,-512.15,0.00022246,3]
[330616258,1719624705653,-500.0,0.00022246,3]
[330616259,1719624705662,-500.0,0.00022246,3]
[330616260,1719624705672,-711.4,0.00022246,3]
[330616261,1719624705682,-500.0,0.00022246,3]
[330616262,1719624705691,-1367.15,0.00022246,3]
[330616263,1719624705702,-3233.11,0.00022246,3]
[330616264,1719624705712,-500.0,0.00022246,3]
[330616265,1719624705721,-500.0,0.00022246,3]
[330616266,1719624705731,-500.0,0.00022246,3]
[330616267,1719624705741,-1221.28,0.00022246,3]
[330616268,1719624705750,-500.0,0.00022246,3]
[330616269,1719624705763,-1228.83,0.00022246,3]
[330616270,1719624705773,-500.0,0.00022246,3]
[330616271,1719624705784,-4736.98,0.00022246,3]
[330616272,1719624705795,-500.0,0.00022246,3]
[330616273,1719624705806,-2344.97,0.00022246,3]
[330616274,1719624705817,-500.0,0.00022246,3]
[330616275,1719624705828,-500.0,0.00022246,3]
[330616276,1719624705840,-1327.87,0.00022246,3]
[330616277,1719624705851,-865.66,0.00022246,3]
[330616278,1719624705862,-903.44,0.00022246,3]
[330616279,1719624705872,-639.25,0.00022246,3]
[330616280,1719624705882,-765.2,0.00022246,3]
[330616281,1719624705893,-2478.46,0.00022246,3]
[330616282,1719624705903,-500.0,0.00022246,3]
[330616283,1719624705912,-724.72,0.00022246,3]
[330616284,1719624705922,-500.0,0.00022246,3]
[330616285,1719624705932,-1130.74,0.00022246,3]
[330616286,1719624705941,-608.62,0.00022246,3]
[330616287,1719624705952,-500.0,0.00022246,3]
[330616288,1719624705962,-1301.51,0.00022246,3]
[330616289,1719624705972,-2751.54,0.00022246,3]
[330616290,1719624705982,-754.96,0.00022246,3]
[330616291,1719624705992,-921.36,0.00022246,3]
[330616292,1719624706002,-1174.65,0.00022246,3]
[330616293,1719624706012,-749.66,0.00022246,3]
[330616294,1719624706022,-620.45,0.00022246,3]
[330616295,1719624706032,-507.8,0.00022246,3]
[330616296,1719624706042,-500.0,0.00022246,3]
[330616297,1719624706051,-974.62,0.00022246,3]
[330616298,1719624706060,-1527.47,0.00022246,3]
[330616299,1719624706073,-1163.73,0.00022246,3]
[330616300,1719624706084,-500.0,0.00022246,3]
[330616301,1719624706095,-1804.78,0.00022246,3]
[330616302,1719624706105,-500.0,0.00022246,3]
[330616303,1719624706114,-772.94,0.00022246,3]
[330616304,1719624706124,-839.14,0.00022246,3]
[330616305,1719624706136,-902.36,0.00022246,3]
[330616306,1719624706147,-500.0,0.00022246,3]
[330616307,1719624706159,-1380.97,0.00022246,3]
[330616308,1719624706169,-500.0,0.00022246,3]
[330616309,1719624706179,-500.0,0.00022246,3]
[330616310,1719624706188,-500.0,0.00022246,3]
[330616311,1719624706199,-1029.12,0.00022246,3]
[330616312,1719624706211,-1160.23,0.00022246,3]
[330616313,1719624706221,-1141.72,0.00022246,3]
[330616314,1719624706232,-561.18,0.00022246,3]
[330616315,1719624706243,-500.0,0.00022246,3]
[330616316,1719624706257,-10528.0,0.00022246,3]
[330616317,1719624706268,-884.16,0.00022246,3]
[330616318,1719624706279,-3611.32,0.00022246,3]
[330616319,1719624706289,-657.66,0.00022246,3]
[330616320,1719624706299,-1253.72,0.00022246,3]
[330616321,1719624706309,-1596.0,0.00022246,3]
[330616322,1719624706318,-500.0,0.00022246,3]
[330616323,1719624706330,-913.6,0.00022246,3]
[330616324,1719624706341,-500.0,0.00022246,3]
[330616325,1719624706351,-539.8,0.00022246,3]
[330616326,1719624706366,-1243.17,0.00022246,3]
[330616327,1719624706376,-2734.83,0.00022246,3]
[330616328,1719624706386,-666.63,0.00022246,3]
[330616329,1719624706396,-500.0,0.00022246,3]
[330616330,1719624706407,-858.32,0.00022246,3]
[330616331,1719624706417,-500.0,0.00022246,3]
[330616332,1719624706427,-2881.65,0.00022246,3]
[330616333,1719624706439,-2950.95,0.00022246,3]
[330616334,1719624706449,-1102.31,0.00022246,3]
[330616335,1719624706460,-599.97,0.00022246,3]
[330616336,1719624706470,-500.0,0.00022246,3]
[330616337,1719624706479,-573.04,0.00022246,3]
[330616338,1719624706488,-1238.0,0.00022246,3]
[330616339,1719624706498,-500.0,0.00022246,3]
[330616340,1719624706508,-997.01,0.00022246,3]
[330616341,1719624706518,-3100.35,0.00022246,3]
[330616342,1719624706528,-1154.76,0.00022246,3]
[330616343,1719624706539,-1151.54,0.00022246,3]
[330616344,1719624706548,-500.0,0.00022246,3]
[330616345,1719624706558,-500.0,0.00022246,3]
[330616346,1719624706568,-500.0,0.00022246,3]
[330616347,1719624706577,-957.42,0.00022246,3]
[330616348,1719624706587,-500.0,0.00022246,3]
[330616349,1719624706597,-500.0,0.00022246,3]
[330616350,1719624706606,-500.0,0.00022246,3]
[330616351,1719624706616,-2252.38,0.00022246,3]
[330616352,1719624706626,-500.0,0.00022246,3]
[330616353,1719624706636,-1048.64,0.00022246,3]
[330616354,1719624706645,-3833.58,0.00022246,3]
[330616355,1719624706655,-847.39,0.00022246,3]
[330616356,1719624706665,-976.22,0.00022246,3]
[330616357,1719624706675,-4549.24,0.00022246,3]
[330616358,1719624706684,-958.03,0.00022246,3]
[330616359,1719624706694,-500.0,0.00022246,3]
[330616360,1719624706704,-500.0,0.00022246,3]
[330616361,1719624706714,-859.51,0.00022246,3]
[330616362,1719624706723,-955.16,0.00022246,3]
[330616363,1719624706732,-715.53,0.00022246,3]
[330616364,1719624706743,-500.0,0.00022246,3]
[330616365,1719624706753,-500.0,0.00022246,3]
[330616366,1719624706768,-269.96918048,0.00022246,3]
[330616367,1719624706782,-500.0,0.00022246,3]
[330616368,1719624706792,-500.0,0.00022246,3]
[330616369,1719624706802,-500.0,0.00022246,3]
[330616370,1719624706812,-1438.6,0.00022246,3]
[330616371,1719624706822,-500.0,0.00022246,3]
[330616372,1719624706832,-500.0,0.00022246,3]
[330616373,1719624706842,-955.13,0.00022246,3]
[330616374,1719624706852,-832.58,0.00022246,3]
[330616375,1719624706863,-734.17,0.00022246,3]
[330616376,1719624706874,-1152.66,0.00022246,3]
[330616377,1719624706884,-7463.31,0.00022246,3]
[330616378,1719624706894,-500.0,0.00022246,3]
[330616379,1719624706904,-228.2794331,0.00022246,3]
[330616380,1719624706914,-3259.77,0.00022246,3]
[330616381,1719624706924,-524.3,0.00022246,3]
[330616382,1719624706935,-733.59,0.00022246,3]
[330616383,1719624706945,-518.16,0.00022246,3]
[330616384,1719624706958,-1989.77,0.00022246,3]
[330616385,1719624706968,-1076.15,0.00022246,3]
[330616386,1719624706978,-500.0,0.00022246,3]
[330616387,1719624706988,-526.94,0.00022246,3]
[330616388,1719624706998,-500.0,0.00022246,3]
[330616389,1719624707008,-2136.24,0.00022246,3]
[330616390,1719624707019,-1078.91,0.00022246,3]
[330616391,1719624707031,-500.0,0.00022246,3]
[330616392,1719624707041,-1384.39,0.00022246,3]
[330616393,1719624707051,-1209.59,0.00022246,3]
[330616394,1719624707062,-1004.41,0.00022246,3]
[330616395,1719624707072,-668.92,0.00022246,3]
[330616396,1719624707082,-500.0,0.00022246,3]
[330616397,1719624707092,-1583.74,0.00022246,3]
[330616398,1719624707102,-500.0,0.00022246,3]
[330616399,1719624707112,-3169.0,0.00022246,3]
[330616400,1719624707122,-39648.0,0.00022246,3]
[330616401,1719624707132,-500.0,0.00022246,3]
[330616402,1719624707142,-4295.14,0.00022246,3]
[330616403,1719624707152,-560.50352976,0.00022246,3]
[330616404,1719624707162,-500.0,0.00022246,3]
[330616405,1719624707172,-1043.71,0.00022246,3]
[330616406,1719624707182,-500.0,0.00022246,3]
[330616407,1719624707192,-500.0,0.00022246,3]
[330616408,1719624707203,-500.0,0.00022246,3]
[330616409,1719624707213,-500.0,0.00022246,3]
[330616410,1719624707223,-879.55,0.00022246,3]
[330616411,1719624707233,-875.07,0.00022246,3]
[330616412,1719624707243,-717.04,0.00022246,3]
[330616413,1719624707254,-3979.85,0.00022246,3]
[330616414,1719624707265,-500.0,0.00022246,3]
[330616415,1719624707275,-724.25,0.00022246,3]
[330616416,1719624707285,-1495.61,0.00022246,3]
[330616417,1719624707295,-500.0,0.00022246,3]
[330616418,1719624707305,-1446.97,0.00022246,3]
[330616419,1719624707315,-1966.0,0.00022246,3]
[330616420,1719624707325,-2929.84,0.00022246,3]
[330616421,1719624707335,-500.0,0.00022246,3]
[330616422,1719624707346,-500.0,0.00022246,3]
[330616423,1719624707360,-500.0,0.00022246,3]
[330616424,1719624707370,-500.0,0.00022246,3]
[330616425,1719624707380,-7736.62,0.00022246,3]
[330616426,1719624707390,-448.76329757,0.00022246,3]
[330616427,1719624707403,-1527.33,0.00022246,3]
[330616428,1719624707412,-500.0,0.00022246,3]
[330616429,1719624707423,-725.11,0.00022246,3]
[330616430,1719624707436,-1633.64,0.00022246,3]
[330616431,1719624707446,-585.53,0.00022246,3]
[330616432,1719624707458,-1130.0,0.00022246,3]